Cogmind - Beta 14 @@@ ROGUE MODE // 2025.03.29 @ 18:47:16 Player: CanadianCogs Result: Destroyed by Y-54 Guardian with Gatling Laser Performance ------------- Evolutions (3) 1500 Regions Visited (6) 1200 Robots Destroyed (30) 150 Value Destroyed (1017) 1017 Prototype IDs (3) 60 Alien Tech Used (0) 0 Bonus (0) 0 TOTAL SCORE: 3927 Bonus ------- None Cogmind --------- Core Integrity 0/700 Matter 180/300 Energy 99/100 System Corruption 3% Temperature Cool (6) Movement Core (50) Location -7/Storage Parts ------- > --- POWER (1) -------- (None) > --- PROPULSION (2) --- (None) > --- UTILITY (8) ------ Hacking Suite > --- WEAPON (2) ------- (None) > --- INVENTORY (5) ---- Gravity Neutralizer Heavy Particle Cannon Heavy Missile Launcher Peak State ------------ > --- POWER ------------ (None) > --- PROPULSION ------- (None) > --- UTILITY ---------- Drone Bay Drone Bay Drone Bay Drone Bay Drone Bay Drone Bay Drone Bay Drone Bay > --- WEAPON ----------- (None) > --- INVENTORY -------- Heavy Particle Cannon Heavy Missile Launcher [Rating: 40] Favorites ----------- Power Light Nuclear Core Engine Ion Engine Power Core Light Nuclear Core Propulsion Improved Aluminum Leg Leg Improved Aluminum Leg Wheel Wheel Hover Unit Backup Propulsion I Flight Unit Cesium-ion Thruster Utility Salvage Targeting Computer Device Experimental Sensor Array Storage High-capacity Storage Unit Processor Salvage Targeting Computer Hackware Hacking Suite Protection Improved Light Armor Plating Weapon Gatling Laser Energy Gun Gatling Laser Energy Cannon Heavy Particle Cannon Ballistic Gun Heavy Assault Rifle Ballistic Cannon Assault Cannon Launcher Rocket Launcher Build | -11 -10 -10 -9 -8 -7 -7 ------- Run | Yrd Mat Min Mat Mat Fac Sto Slots Evolved 6 | . . . 2 2 2 . Power . | . . . . . . . Propulsion . | . . . . . . . Utility 6 | . . . 2 2 2 . Weapon . | . . . . . . . Parts Attached 85 | 6 5 11 6 20 23 14 Power 7 | 1 . 2 . 4 . . Engine 1 | 1 . . . . . . Core 6 | . . 2 . 4 . . Reactor . | . . . . . . . Propulsion 14 | 2 2 2 3 3 2 . Treads . | . . . . . . . Leg 6 | . 2 2 1 1 . . Wheel 6 | 2 . . 2 2 . . Hover 1 | . . . . . 1 . Flight 1 | . . . . . 1 . Utility 35 | 1 1 2 2 6 11 12 Device 17 | . . 1 . 1 4 11 Storage 2 | 1 . . . 1 . . Processor 5 | . 1 1 1 2 . . Hackware 2 | . . . 1 . . 1 Protection 9 | . . . . 2 7 . Artifact . | . . . . . . . Weapon 29 | 2 2 5 1 7 10 2 Energy Gun 18 | 1 2 2 . 4 9 . Energy Cannon 3 | . . . . 1 1 1 Ballistic Gun 2 | 1 . . . 1 . . Ballistic Cannon 3 | . . 2 1 . . . Launcher 3 | . . 1 . 1 . 1 Special Weapon . | . . . . . . . Impact Weapon . | . . . . . . . Slashing Weapon . | . . . . . . . Piercing Weapon . | . . . . . . . Special Melee Weapon . | . . . . . . . Unidentified Prototypes 3 | . . 1 . 1 . 1 Parts Lost 29 | . . 5 4 6 13 1 Power 5 | . . 1 1 1 2 . Propulsion 10 | . . 2 1 2 5 . Utility 10 | . . 1 2 1 5 1 Weapon 4 | . . 1 . 2 1 . Highest Loss Streak 6 | . . 5 4 6 5 1 To Critical Strikes . | . . . . . . . Average Slot Usage (%) 83 | . 99 90 87 89 80 8 Engine 3 | . 14 1 . . 1 . Core 4 | . . 5 8 6 4 . Leg 11 | . 27 28 17 5 . . Wheel 4 | . . . 3 5 7 . Hover 1 | . . . . . 3 . Device 3 | . . 9 9 1 1 7 Storage 8 | . 14 14 11 9 4 . Processor 14 | . 13 3 10 27 15 . Protection 12 | . . . . 16 24 . Energy Gun 14 | . 27 15 . 9 13 . Ballistic Gun 1 | . . . . 6 . . Ballistic Cannon 2 | . . 9 15 . . . Peak Build Rating 40 | 6 13 24 28 26 32 40 Average Rating 20 | 4 12 18 24 22 24 6 On Entrance 11 | . 6 13 24 10 24 . Naked Turns 137 | . . . . . 56 81 Heaviest Build 66 | 13 16 22 22 60 66 24 Greatest Support 26 | 20 26 26 26 24 20 15 Greatest Overweight (x) 15 | . . . 1 15 6 7 Average Overweight (x) 1 | . . . . 2 2 . Largest Inventory Capacity 20 | 8 8 8 8 20 20 5 Average Capacity 12 | 6 8 8 8 19 15 5 Most Carried 11 | . 8 8 6 4 11 5 Average Carried 4 | . 7 5 5 1 4 2 Final Capacity 20 | 8 8 8 8 20 5 5 Final Carried 8 | . 8 7 5 2 2 3 Class Distribution -------------------- 63% | Mutant 36% | Scavenger-Mutant Dominant Class ---------------- Mutant | -10/Materials Mutant | -10/Mines Mutant | -9/Materials Scavenger-Mutant | -8/Materials Scavenger-Mutant | -7/Factory Mutant | -7/Storage Resources | -11 -10 -10 -9 -8 -7 -7 ----------- Run | Yrd Mat Min Mat Mat Fac Sto Matter Collected 1138 | 252 58 240 . 386 95 107 Remotely . | . . . . . . . Salvage Created 1199 | . 217 133 74 474 301 . Parts 67 | . 12 11 2 27 15 . Haulers Intercepted . | . . . . . . . Recyclers Shooed . | . . . . . . . Parts Field Recycled . | . . . . . . . Retrieved Matter . | . . . . . . . Parts Self-Destructed . | . . . . . . . Prevented . | . . . . . . . Kills | -11 -10 -10 -9 -8 -7 -7 ------- Run | Yrd Mat Min Mat Mat Fac Sto Combat Hostiles Destroyed 38 | . 6 16 . 11 5 . Guns 15 | . 4 1 . 6 4 . Cannons 5 | . . 3 . 1 1 . AOE 18 | . 2 12 . 4 . . Classes Destroyed 8 | . 1 2 1 3 1 . Worker 2 | . . 1 . . 1 . Builder 1 | . . . . 1 . . Recycler 2 | . . . 1 1 . . Swarmer 4 | . . . . 4 . . Grunt 16 | . 6 3 . 6 1 . Sentry 4 | . . . . 1 3 . Programmer 1 | . . . . . 1 . Assembled 13 | . . 13 . . . . Best Kill Streak 13 | . 4 13 1 9 2 . Combat Bots Only 13 | . 4 13 . 7 1 . Max Kills in Single Turn 3 | . 2 3 1 2 2 . Gunslinging . | . . . . . . . Exploded 3 | . 2 3 . 2 . . Melee . | . . . . . . . Uniques/NPCs Destroyed . | . . . . . . . Combat | -11 -10 -10 -9 -8 -7 -7 -------- Run | Yrd Mat Min Mat Mat Fac Sto Hostile Shots Fired 454 | . 24 48 49 87 180 66 Missed 155 | . 9 16 11 19 74 26 Damage Taken 4334 | . 174 605 548 953 1646 408 Core 1278 | . 32 157 172 212 431 274 Absorbed by Shields . | . . . . . . . Redirected to Shielding 110 | . . . . 67 43 . Regen/Repaired (Parts) 230 | . . . . 32 198 . Core Remaining (%) 60 | 100 . 24 57 61 . . Volleys Fired 78 | . 8 18 3 31 18 . Largest 2 | . 2 2 2 2 2 . Hottest 160 | . 90 90 88 119 160 . Shots Fired 134 | . 16 27 5 57 29 . Gun 97 | . 16 2 . 52 27 . Cannon 23 | . . 15 5 1 2 . Launcher 14 | . . 10 . 4 . . Special . | . . . . . . . Kinetic 39 | . . 15 5 19 . . Thermal 63 | . . . . 34 29 . Explosive 14 | . . 10 . 4 . . Electromagnetic 18 | . 16 2 . . . . Robot Hit Streak 11 | . 11 5 2 10 10 . Robot Miss Streak 4 | . 2 4 2 2 3 . Penetration Max . | . . . . . . . Secondary Targets 1 | . . . . 1 . . Max Gunslinging Chain 1 | . . . . 1 . . Shots Hit Robots 96 | . 13 14 3 42 24 . Core Hits 86 | . 12 32 4 19 19 . Critical Kills . | . . . . . . . Critical Parts Destroyed . | . . . . . . . Critical Strikes 1 | . . . . 1 . . Burn 1 | . . . . 1 . . Melee Attacks . | . . . . . . . Impact . | . . . . . . . Slashing . | . . . . . . . Piercing . | . . . . . . . Sneak Attacks . | . . . . . . . Combat Hostiles . | . . . . . . . Follow-up Attacks . | . . . . . . . Damage Inflicted 3191 | . 349 1182 104 1053 503 . Guns 1356 | . 212 23 . 668 453 . Cannons 427 | . . 245 104 28 50 . Explosions 1407 | . 136 914 . 357 . . Melee . | . . . . . . . Ramming 1 | . 1 . . . . . Kinetic 581 | . . 245 104 232 . . Thermal 1103 | . 136 . . 464 503 . Explosive 1271 | . . 914 . 357 . . Electromagnetic 235 | . 212 23 . . . . Impact . | . . . . . . . Slashing . | . . . . . . . Piercing . | . . . . . . . Highest Corruption 6 | . . 6 . . 3 3 Average Corruption 4 | . . 5 . . 2 3 Corruption Purged . | . . . . . . . Corruption Blocked . | . . . . . . . Effects 29 | . . 11 . . 14 4 Message Errors 7 | . . 2 . . 4 1 Matter Fused 3 | . . 2 . . 1 . Heat Flow Errors 5 | . . 2 . . 2 1 Energy Discharges 3 | . . 1 . . 1 1 Data Loss (minor) 5 | . . . . . 5 . Data Loss (major) 2 | . . 2 . . . . Misfires 1 | . . 1 . . . . Alerts 2 | . . 1 . . . 1 Weapon Failures 1 | . . . . . 1 . Overload Shots . | . . . . . . . Overflow Damage 89 | . . 30 . 59 . . Projectiles . | . . . . . . . Explosions 89 | . . 30 . 59 . . Melee . | . . . . . . . Knockbacks 8 | . . 6 2 . . . Impact . | . . . . . . . Kinetic 8 | . . 6 2 . . . Secondary . | . . . . . . . Self-Inflicted Damage 284 | . 17 165 . 102 . . Shots 8 | . 1 4 . 3 . . Rammed . | . . . . . . . Targets Rammed 1 | . 1 . . . . . Kicked 1 | . 1 . . . . . Crushed . | . . . . . . . Highest Temperature 330 | . 195 142 48 330 327 143 Average Temperature 98 | . 79 56 19 99 130 82 Received Heat Transfer 1095 | . 51 60 246 342 246 150 Effects 3 | . . . . . 3 . Energy Bleed 1 | . . . . . 1 . Interference 2 | . . . . . 2 . Siege Activations . | . . . . . . . Robots Corrupted . | . . . . . . . Combat Hostiles . | . . . . . . . Parts Fried 1 | . 1 . . . . . Impact Corruptions . | . . . . . . . Robots Melted . | . . . . . . . Combat Hostiles . | . . . . . . . Parts Melted 7 | . 1 . . 3 3 . Heat Transferred 2297 | . 200 . . 1036 1061 . Parts Sabotaged . | . . . . . . . Parts Stolen . | . . . . . . . Parts Stripped . | . . . . . . . Power Chain Reactions 2 | . 2 . . . . . Alert | -11 -10 -10 -9 -8 -7 -7 ------- Run | Yrd Mat Min Mat Mat Fac Sto Peak Influence 362 | . 200 122 94 304 172 362 Initial 78 | . . 78 47 22 6 68 Average 92 | . 87 73 76 160 67 106 Maximum Alert Level 1 | . 1 . . 1 . 1 Low Security (%) 91 | 100 94 100 100 67 100 82 Level 1 8 | . 5 . . 32 . 17 Level 2 . | . . . . . . . Level 3 . | . . . . . . . Level 4 . | . . . . . . . Level 5 . | . . . . . . . High Security . | . . . . . . . Max Security . | . . . . . . . Squads Dispatched 24 | . 3 1 2 4 10 4 Investigation 12 | . 2 1 1 3 2 3 Extermination 2 | . . . . . 2 . Reinforcement 10 | . 1 . 1 1 6 1 Assault . | . . . . . . . Garrison . | . . . . . . . Intercept . | . . . . . . . Searches Triggered . | . . . . . . . Construction Impeded . | . . . . . . . Haulers Reinforced 1 | . . . . . 1 . Active Scanning Responses . | . . . . . . . Cargo Convoy Interrupts 1 | . . . . . 1 . Stealth | -11 -10 -10 -9 -8 -7 -7 --------- Run | Yrd Mat Min Mat Mat Fac Sto Distress Signals 6 | . . . 1 1 1 3 Communications Jammed . | . . . . . . . Distress Signals . | . . . . . . . Times Spotted 106 | . 20 17 6 12 28 23 Peak Tracking Total 16 | . 5 13 4 7 7 16 Tactical Retreats 13 | . 2 2 . 1 5 3 Traps | -11 -10 -10 -9 -8 -7 -7 ------- Run | Yrd Mat Min Mat Mat Fac Sto Traps Triggered 7 | . 1 . 1 . 4 1 Indirectly . | . . . . . . . Trap Hack Attempts . | . . . . . . . Triggered . | . . . . . . . Disarmed . | . . . . . . . Reprogrammed 2 | . . . . 2 . . Reused . | . . . . . . . Traps Extracted . | . . . . . . . Installed . | . . . . . . . Triggered 1 | . . . . . 1 . Machines | -11 -10 -10 -9 -8 -7 -7 ---------- Run | Yrd Mat Min Mat Mat Fac Sto Machines Disabled 4 | . 1 2 1 . . . Max in Single Turn 1 | . 1 1 1 . . . Machines Repaired . | . . . . . . . Machines Dismantled . | . . . . . . . Machines Sabotaged . | . . . . . . . Overloaded Fab Kills . | . . . . . . . Hacking | -11 -10 -10 -9 -8 -7 -7 --------- Run | Yrd Mat Min Mat Mat Fac Sto Machines Accessed 21 | . 4 1 2 5 3 6 Terminals 17 | . 4 . 1 4 2 6 Fabricators . | . . . . . . . Repair Stations 3 | . . . 1 1 1 . Recycling Units . | . . . . . . . Scanalyzers . | . . . . . . . Garrison Access . | . . . . . . . Total Hacks 77 | . 20 1 7 26 10 13 Successful 44 | . 13 1 2 15 7 6 Failed 32 | . 7 . 5 10 3 7 Catastrophic 3 | . 1 . . 1 . 1 Database Lockouts 1 | . . . . 1 . . Manual 28 | . 11 . 4 8 2 3 Terminals 62 | . 20 . 3 22 4 13 Fabricators . | . . . . . . . Repair Stations 14 | . . . 4 4 6 . Recycling Units . | . . . . . . . Scanalyzers . | . . . . . . . Garrison Access . | . . . . . . . Terminal Hacks 28 | . 10 1 . 10 2 5 Record 3 | . 1 . . 1 . 1 Robot Analysis 7 | . 4 . . 3 . . Open Door 4 | . . 1 . . . 3 Branch Access Points 2 | . 1 . . . . 1 Repair Station Index 1 | . . . . 1 . . Alert Level 1 | . . . . 1 . . Locate Traps 1 | . 1 . . . . . Reprogram Traps 1 | . . . . 1 . . Transport Status 1 | . . . . 1 . . Zone Layout 7 | . 3 . . 2 2 . Fabricator Hacks . | . . . . . . . Repair Station Hacks 9 | . . . 1 3 5 . Scan Component 4 | . . . 1 1 2 . Repair 3 | . . . . 1 2 . Refit 2 | . . . . 1 1 . Recycling Unit Hacks . | . . . . . . . Scanalyzer . | . . . . . . . Garrison Access Hacks . | . . . . . . . Unauthorized Hacks 7 | . 3 . 1 2 . 1 Terminals 7 | . 3 . 1 2 . 1 Botnet 7 | . 3 . 1 2 . 1 Fabricators . | . . . . . . . Repair Stations . | . . . . . . . Recycling Units . | . . . . . . . Scanalyzers . | . . . . . . . Garrison Access . | . . . . . . . Data Cores Recovered . | . . . . . . . Used . | . . . . . . . Hacking Detections 15 | . 3 . 2 5 2 3 Full Trace Events 14 | . 3 . 2 4 2 3 Feedback Events . | . . . . . . . Feedback Blocked . | . . . . . . . Robot Schematics Acquired . | . . . . . . . Robots Built . | . . . . . . . Authchips . | . . . . . . . Time . | . . . . . . . Total Robot Build Rating . | . . . . . . . Part Schematics Acquired . | . . . . . . . Parts Built . | . . . . . . . Authchips . | . . . . . . . Time . | . . . . . . . Total Part Build Rating . | . . . . . . . Parts Repaired 3 | . . . . 1 2 . Time 90 | . . . . 26 64 . Parts Recycled . | . . . . . . . Recycled Matter . | . . . . . . . Retrieved Matter . | . . . . . . . Retrieved Components . | . . . . . . . Parts Scanalyzed . | . . . . . . . Part Schematics Acquired . | . . . . . . . Parts Damaged . | . . . . . . . Bothacking | -11 -10 -10 -9 -8 -7 -7 ------------ Run | Yrd Mat Min Mat Mat Fac Sto Used RIF Installer . | . . . . . . . Robots Hacked . | . . . . . . . Non-combat . | . . . . . . . Combat . | . . . . . . . Robot Hacks Applied . | . . . . . . . Relay Couplers Released . | . . . . . . . Fabnet Peak Effective % . | . . . . . . . Robots Rewired . | . . . . . . . Allies Hacked . | . . . . . . . Hacks Repelled . | . . . . . . . Allies | -11 -10 -10 -9 -8 -7 -7 -------- Run | Yrd Mat Min Mat Mat Fac Sto Total Allies . | . . . . . . . Largest Group . | . . . . . . . Highest-Rated Group . | . . . . . . . Highest-Rated Ally . | . . . . . . . Total Orders 2 | . . . . . . 2 EXPLORE 1 | . . . . . . 1 RETURN 1 | . . . . . . 1 Ally Attacks . | . . . . . . . Total Damage . | . . . . . . . Kills . | . . . . . . . Allies Corrupted 2 | . . . . . . 2 Allies Melted . | . . . . . . . Intel | -11 -10 -10 -9 -8 -7 -7 ------- Run | Yrd Mat Min Mat Mat Fac Sto Robot Analysis Total 7 | . 4 . . 3 . . Derelict Logs Recovered 1 | . . 1 . . . . Drone Launches 22 | . . . . . . 22 Drone Recoveries 7 | . . . . . . 7 Exploration | -11 -10 -10 -9 -8 -7 -7 ------------- Run | Yrd Mat Min Mat Mat Fac Sto Turns Passed 4225 | 44 764 620 177 843 1565 212 Spaces Moved 2670 | 45 367 406 132 316 1160 244 Core 361 | 1 . . . 3 113 244 Treads . | . . . . . . . Legs 1011 | . 356 406 102 147 . . Wheels 802 | 44 11 . 30 166 551 . Hover 414 | . . . . . 414 . Flight 82 | . . . . . 82 . Fastest Speed 35 | 50 80 120 90 90 35 50 Average Speed 119 | 79 118 120 114 219 106 63 Slowest Speed 800 | 80 120 120 190 800 350 400 Overloaded Moves . | . . . . . . . Propulsion Burnouts . | . . . . . . . Robots Hopped . | . . . . . . . Cave-ins Triggered . | . . . . . . . Exploration Rate (%) 37 | 3 53 83 16 29 32 48 Regions Visited 6 Branch Regions 2 Pre-discovered Areas . | . . . . . . . Known Exits Taken 2 | . 1 . . . 1 . Unknown Exits Taken 4 | 1 . 1 1 1 . . Scrap Searched 1 | . . 1 . . . . Spaces Dug . | . . . . . . . Terrain Destroyed 115 | . 7 88 . 20 . . Melee . | . . . . . . . Projectile 2 | . . 2 . . . . AOE 113 | . 7 86 . 20 . . Terrain Rammed . | . . . . . . . Walls Destroyed . | . . . . . . . Machines Disabled . | . . . . . . . Actions | -11 -10 -10 -9 -8 -7 -7 --------- Run | Yrd Mat Min Mat Mat Fac Sto Total 3554 | 50 679 513 151 407 1452 302 Wait 627 | . 286 70 10 26 208 27 Move 2664 | 44 366 405 131 315 1159 244 Hop . | . . . . . . . Pick Up 37 | . 9 4 . 7 12 5 Fast Attach 42 | 6 4 4 4 9 8 7 Attach 30 | . 1 6 2 9 5 7 Detach 4 | . . . . . 1 3 Swap 13 | . . 1 . 2 10 . Drop 34 | . 4 5 1 8 7 9 Fire 78 | . 8 18 3 31 18 . Melee . | . . . . . . . Ram . | . . . . . . . Kick 1 | . 1 . . . . . Crush . | . . . . . . . Escape Stasis 24 | . . . . . 24 . Rewire . | . . . . . . . Trap . | . . . . . . . Miscellaneous . | . . . . . . . Route ------- -11/Scrapyard -10/Materials (discovered 5 exits: *Mat x3 / *Min x2) -10/Mines -9/Materials -8/Materials -7/Factory (discovered 2 exits: *Sto x2) -7/Storage (discovered 1 exit: Rec) History --------- Turn | Location | Event 15 | -11/Scrapyard | Discovered new exit (range 16) 45 | -11/Scrapyard | Entered Materials 150 | -10/Materials | Discovered new exit (range 17) 302 | -10/Materials | Build established: Mutant 604 | -10/Materials | Discovered new exit (range 15) 745 | -10/Materials | Discovered new exit (range 16) 758 | -10/Materials | Identified exit to Mines 809 | -10/Materials | Entered Mines 819 | -10/Mines | Received a Rocket Launcher from a helpful Derelict 869 | -10/Mines | Assembled infested the area 893 | -10/Mines | Core integrity fell below 50% 923 | -10/Mines | Lost 5 parts (1p2n1u1w) 928 | -10/Mines | Destroyed 13 combat bots 980 | -10/Mines | Found a damaged Exp. Sensor Array with a note attached 983 | -10/Mines | Found Prototype Device 984 | -10/Mines | Identified Exp. Sensor Array 1192 | -10/Mines | Met a Derelict shopkeep closing up shop 1419 | -10/Mines | Discovered new exit (range 8) 1429 | -10/Mines | Entered Materials 1429 | -9/Materials | Evolved 2 slots: Utility x2 1592 | -9/Materials | Discovered new exit (range 15) 1606 | -9/Materials | Entered another Materials area 1606 | -8/Materials | Evolved 2 slots: Utility x2 1625 | -8/Materials | Lost 4 parts (1p1n2u) 1758 | -8/Materials | Destroyed 7 combat bots 1764 | -8/Materials | Lost 6 parts (1p2n1u2w) 2199 | -8/Materials | Met 7R-MNS 2229 | -8/Materials | Build established: Scavenger-Mutant 2257 | -8/Materials | Repaired Lgt. Armor Plating 2344 | -8/Materials | Central database locked down 2436 | -8/Materials | Discovered new exit (range 8) 2449 | -8/Materials | Entered Factory 2449 | -7/Factory | Evolved 2 slots: Utility x2 2450 | -7/Factory | Caught up to 7R-MNS 2450 | -7/Factory | Identified exit to Storage 3148 | -7/Factory | Cargo convoy interrupted 3403 | -7/Factory | Repaired Lgt. Armor Plating 3443 | -7/Factory | Repaired Imp. Light Armor Plating 3514 | -7/Factory | Released all parts (8) 3544 | -7/Factory | Lost 5 parts (1p1n2u1w) 3813 | -7/Factory | Build established: Mutant 3929 | -7/Factory | Released all parts (6) 3960 | -7/Factory | Lost 5 parts (1p2n2u) 4008 | -7/Factory | Discovered exit to Storage (range 9) 4010 | -7/Factory | Core integrity fell below 50% 4014 | -7/Factory | Entered Storage 4128 | -7/Storage | Core integrity fell below 20% 4153 | -7/Storage | Lost 9 allies 4171 | -7/Storage | Identified exit to Recycling 4226 | -7/Storage | Destroyed by Y-54 Guardian with Gatling Laser Last Messages --------------- Testing... Terminal linked with 0 systems. Awaiting botnet instructions. >>Access(Branch) Found 1 branch access point: (10,12) Recycling Map updated. 04171_ ALERT: Suspicious activity at Terminal S013. Dispatching Investigation squad. 04173_ W-25 Informer sends out distress signal. 04200_ Acquired Hacking Suite. 04204_ W-25 Informer sends out distress signal. 04215_ System corrupted: Energy discharge (-21). 04219_ K-01 Serf collects debris. 04226_ Triggered Ambush Trap. 04226_ B-48 Gladiator emerges from a hatch in the floor. 04226_ G-47 Trooper emerges from a hatch in the floor. 04226_ S-27 Virus emerges from a hatch in the floor. 04226_ Knocked back. 04226_ U-05 Engineer lays Concrete. Map ----- +----------------------------------------------------+ | ???????????????+ #?????# %#?#########????? | | ???????????????## ### #?????# #? ????? | | ????????????????# #?# ####### %# ?????? | | ????????????????# #?# % # """ """??????? | | ????????????????# #?# + """ """ ?????? | | ????????????????# #?# # """ """ ?????? | | ????????????????# #?############ ## ?????? | | ????????????????# #?????###????# #?? ????? | | ????????????????# ##### #????#/#??#######/#????? | | ????????????????# #???? ????????? ?????? | | ????????????????# #???? ""????????? ?????? | | ????????????????# #???? ""????????# #????? | | ????????????????# #???" ""????????# #????? | | ????????????????# ##### +??? ???????" #????? | | ????????????????# #???# #??? ??????????T #????? | | ????????????????# #???# #?? ??????????# #????? | | ????????????????# #???# Y +?? ??????????# #????? | | ????????????????#+##### ###############?# #????? | | ????????????????# # # ### ###### | | ????????????????# # # / | | ????????????????# # # ### ###### | | ????????????????# # # #?# #????? | | ????????????????# # h# #?# #????? | | ????????????????# + # #?# #????? | | ????????????????# # #####+########### ###??? | | ????????????????# # @ s #??? | | ????????????????# # g a +??? | | ????????????????# + ub #??? | | ????????????????# ######## ############## ???? | | ????????????????# #??????# #?????##?????# ???? | | ????????????????#######??????# #?????# ###### ???? | | ?????????????????????????????# #?????# ?# #??? | | ???????????????????????####### ###???# """ ?# #### | | ???????????????????????# """ #T###?# """??+ # | | ???????????????????????# "Y" + #?# """??# # | | ???????????????????????# #####?? ???# # | | ???????????????????????+ #?????? ???# | | ???????????????????????# #??????#+#???# | | ???????????????????????# ######## ##### | | ???????????????????????# | | ???????????????????????###"T"##################### | | ?????????????????????????#####???????????????????? | | ?????????????????????????????????????????????????? | | ?????????????????????????????????????????????????? | | ?????????????????????????????????????????????????? | | | | | | | | | | | +----------------------------------------------------+ Best States ------------- Heat Dissipation 45 Energy Generation 14 Energy Capacity 250 Matter Stores 300 Matter Capacity 300 Sight Range 16 Robot Scan Range 20 Terrain Scan Density 10 Additional Mass Support 12 Armor Coverage 450 Resistance: TH 10 Utility Shielding 66 Weapon Cycling 15 Evasion (%) 63 Targeting Accuracy 5 Particle Charging 15 Salvage Targeting 2 Offensive Hacking 10 Item Schematics ----------------- None Robot Schematics ------------------ None Fabricated ------------ Nothing Alien Tech Used ----------------- None Achievements -------------- None Challenges ------------ None Game ------ Seed MissileGunClaymores Manual? 0 Play Time 00:41:37 Cumulative 64.5 hours Start 2025.03.29 @ 18:10:29 End 2025.03.29 @ 18:47:16 Sessions 1 Manual Loads 0 Difficulty Rogue Special Mode None Game No. 106 Rogue 106 Adventurer 0 Explorer 0 Win Type - Total 0 Types 0/0/0/0/0/0/0/0/0 Lore% 20 Gallery% 40 Achievement% 33 Wizard Run 0 Options --------- Layout 0 ASCII 0 Keyboard 0 Movement Mouse Keybinds 0 Fullscreen 2 Font 18/SmallcapsGlow Map View 38x25 Zoom Use 94% Tactical HUD 1 Map Filters NONE Filters NONE Steam 1 RUN: 64452c62-3da2-4600-8aa7-656a428d2723